bitfinex-derivatives/quotes_ETHF0:USTF0_20250531
["timestamp","ask_amount","ask_price","bid_price","bid_amount"]
[1748679207164,0.7929,2521.4,2521.3,0.7929]
[1748679207370,2.7258,2521.4,2521.3,0.7929]
[1748679207871,1.9329,2521.4,2521.3,4.6279]
[1748679208768,2.72579,2521.4,2521.3,4.6279]
[1748679208968,1.9329,2521.4,2521.3,4.6279]
[1748679209774,2.72579,2521.4,2521.3,4.6279]
[1748679210170,2.72579,2521.4,2521.3,3.835]
[1748679210371,0.79292,2521.3,2521.2,4.63387401]
[1748679210570,5.36722,2521.3,2521.2,4.63387401]
[1748679211677,5.36722,2521.3,2521.2,0.79887401]
[1748679212874,5.36722,2521.3,2521.2,0.79889401]
[1748679213774,5.36722,2521.3,2521.2,0.00594401]
[1748679214678,6.88996268,2521.3,2521.2,0.00594401]
[1748679215582,5.36722,2521.3,2521.2,0.00594401]
[1748679217777,7.08770042,2521.3,2521.2,0.00594401]
[1748679218283,0.79306,2520.9,2520.8,4.62906]
[1748679218475,4.00086,2520.9,2520.8,3.836]
[1748679219384,3.2078,2520.9,2520.8,4.62908]
[1748679219678,3.2078,2520.9,2520.8,0.79308]
[1748679219885,5.26775,2520.9,2520.8,0.79308]
[1748679221583,0.79311,2520.7,2520.6,4.62707401]
[1748679221778,2.06,2520.8,2520.7,0.79311]
[1748679222578,1.2669,2520.8,2520.7,0.79311]
[1748679224887,0.79311,2520.7,2520.6,0.79907401]
[1748679225094,0.79311,2520.7,2520.6,0.00594401]
[1748679226088,2.31663146,2520.7,2520.6,0.00594401]
[1748679226279,2.31663146,2520.7,2520.6,0.79908401]
[1748679226585,2.31663146,2520.7,2520.6,0.00594401]
[1748679226780,2.98553146,2520.7,2520.6,0.00594401]
[1748679226982,2.19242146,2520.7,2520.6,0.79908401]
[1748679227285,1.52352146,2520.7,2520.6,0.79908401]
[1748679227785,2.31663146,2520.7,2520.6,0.79908401]
[1748679227982,2.76932146,2520.7,2520.6,0.79908401]
[1748679228183,1.2458,2520.7,2520.6,0.79908401]
[1748679228385,3.8767,2520.9,2520.6,0.00594401]
[1748679228687,0.79311,2520.7,2520.6,0.00594401]
[1748679229588,3.55313329,2520.7,2520.6,0.00594401]
[1748679230183,3.55313329,2520.7,2520.6,0.0774974]
[1748679232180,3.55313329,2520.7,2520.6,0.00594401]
[1748679232681,3.55313329,2520.7,2520.1,0.6698]
[1748679232682,2.76002329,2520.7,2520.1,5.1199]
[1748679232985,0.79319,2520.5,2520.4,0.7932]
[1748679233186,4.00099,2520.5,2520.4,0.7932]
[1748679233796,5.31099,2520.5,2520.4,0.7932]
[1748679234278,0.79323,2520.4,2520.3,0.79323]
[1748679234478,2.05323,2520.4,2520.3,0.79323]
[1748679234993,0.79324,2520.3,2520.2,2.04229401]
[1748679235287,2.05323,2520.4,2520.3,0.79324]
[1748679236089,1.26,2520.4,2520.2,0.00594401]
[1748679236284,1.26,2520.4,2520.3,0.79324]
[1748679238189,4.00099,2520.5,2520.4,0.79321]
[1748679238386,3.2078,2520.5,2520.4,0.79321]
[1748679238788,4.7333203,2520.5,2520.4,0.79321]
[1748679238987,5.5264903,2520.5,2520.4,1.42721]
[1748679239189,4.7333203,2520.5,2520.4,1.42721]
[1748679239580,4.7333203,2520.5,2520.4,5.25621]
[1748679239989,4.7333203,2520.5,2520.4,6.62441]
[1748679240587,3.2078,2520.8,2520.7,0.79311]
[1748679241293,4.73394481,2520.8,2520.7,0.79311]
[1748679242584,4.73394481,2520.8,2520.7,5.79311]
[1748679243392,1.52614481,2520.8,2520.7,5.79311]
[1748679243590,0.1983,2520.8,2520.7,5.79311]
[1748679243785,0.1983,2520.8,2520.7,7.10941]
[1748679244794,0.00594401,2521.1,2521.0,0.79302]
[1748679245090,0.00594401,2521.1,2521.0,4.62202]
[1748679246994,0.00594401,2521.1,2521.0,9.62202]
[1748679247700,0.00594401,2521.1,2521.0,4.62202]
[1748679247897,0.00594401,2521.1,2521.0,5.92232]
[1748679249485,0.79893401,2521.1,2521.0,4.62202]
[1748679249697,2.05613401,2521.1,2521.0,4.62202]
[1748679250190,2.05613401,2521.1,2521.0,3.829]
[1748679250494,1.26314401,2521.1,2521.0,4.62202]
[1748679250890,2.05613401,2521.1,2521.0,4.62202]
[1748679251193,3.58127768,2521.1,2521.0,4.62202]
[1748679251495,6.78907768,2521.1,2521.0,4.62202]
[1748679251682,5.99608768,2521.1,2520.9,3.832]
[1748679251994,1.2572,2521.0,2520.9,4.62503]
[1748679254001,3.21374401,2521.1,2521.0,0.79302]
[1748679256698,0.79893401,2521.1,2521.0,0.79302]
[1748679256902,0.00594401,2521.1,2521.0,0.79302]
[1748679257697,1.29664401,2521.1,2521.0,0.79302]
[1748679257894,4.50444401,2521.1,2521.0,0.79302]
[1748679259605,1.29664401,2521.1,2521.0,0.79302]
[1748679259798,4.50444401,2521.1,2521.0,0.79302]
[1748679261600,5.29743401,2521.1,2521.0,0.79302]
[1748679262204,0.79302,2521.0,2520.9,3.832]
[1748679262404,2.14262,2521.0,2520.9,0.79305]
[1748679263103,1.3496,2521.0,2520.9,0.79305]
[1748679263804,3.21374401,2521.1,2521.0,0.79302]
[1748679264510,3.21374401,2521.1,2521.0,2.07862]
[1748679265011,0.1983,2521.2,2521.1,0.79299]
[1748679265301,0.1983,2521.2,2521.1,5.86779]
[1748679267408,0.1983,2521.2,2521.1,2.03579]
[1748679267601,0.1983,2521.2,2521.1,5.86779]
[1748679268995,0.1983,2521.2,2521.1,4.62499]
[1748679269201,1.5539,2521.2,2521.1,4.62499]
[1748679269401,1.5539,2521.2,2521.1,0.79299]
[1748679269607,1.5539,2521.2,2521.1,4.62499]
[1748679269806,2.34685,2521.2,2521.1,3.832]
[1748679270009,5.55465,2521.2,2521.1,3.832]
[1748679270211,6.28915502,2521.2,2520.9,3.832]
[1748679270403,2.1486,2521.1,2521.0,0.79301]
[1748679270603,1.3556,2521.1,2520.9,0.79303]
[1748679270809,2.82515502,2521.0,2520.9,0.79303]
[1748679271011,2.82515502,2521.0,2520.9,4.62503]
[1748679271215,3.61817502,2521.0,2520.9,3.832]
[1748679271904,3.61817502,2521.0,2520.5,43.32492]
[1748679272211,5.93966,2520.9,2520.6,3.832]
[1748679272415,1.9492,2520.8,2520.7,0.79311]
[1748679272812,2.74228,2520.8,2520.7,0.79311]
[1748679273013,1.9492,2520.8,2520.7,0.79311]
[1748679278423,0.6515,2520.8,2520.7,0.79311]
[1748679278719,3.8489,2520.9,2520.8,0.79308]
[1748679279419,5.37660101,2520.9,2520.8,0.79308]
[1748679279922,5.57490101,2520.9,2520.8,0.79308]
[1748679280621,6.82180101,2520.9,2520.8,0.79308]
[1748679281715,5.57490101,2520.9,2520.8,0.79308]
[1748679283217,6.83090101,2520.9,2520.8,0.79308]
[1748679285118,3.62310101,2520.9,2520.8,0.79308]
[1748679286522,3.61601812,2520.9,2520.8,0.79308]
[1748679289326,6.82381812,2520.9,2520.8,0.79308]
[1748679293022,3.61601812,2520.9,2520.8,0.79308]
[1748679296114,6.82381812,2520.9,2520.8,0.79308]
[1748679296817,7.61686812,2520.9,2520.8,0.79308]
[1748679298424,6.82381812,2520.9,2520.8,0.79308]
[1748679302124,6.82381812,2520.9,2520.4,3.96366]
[1748679302125,6.82381812,2520.9,2520.4,0.6792]
[1748679302330,3.2078,2520.6,2520.5,4.62117]
[1748679302721,4.4757,2520.6,2520.5,4.62117]
[1748679303330,6.00340101,2520.6,2520.5,4.62117]
[1748679303628,6.79654101,2520.6,2520.5,4.62117]
[1748679304325,6.79654101,2520.6,2520.5,4.69272339]
[1748679304532,6.79654101,2520.6,2520.5,0.07155339]
[1748679305639,6.79654101,2520.6,2520.5,0.86472339]
[1748679305831,6.00340101,2520.6,2520.5,0.86472339]
[1748679306038,4.73550101,2520.6,2520.5,0.86472339]
[1748679306531,4.93380101,2520.6,2520.5,0.86472339]
[1748679306730,6.19300101,2520.6,2520.5,0.86472339]
[1748679306933,6.98614101,2520.6,2520.5,0.86472339]
[1748679307125,6.19300101,2520.6,2520.5,0.86472339]
[1748679307432,6.19300101,2520.6,2520.5,0.79317]
[1748679307831,4.93380101,2520.6,2520.5,0.79317]
[1748679309522,1.72600101,2520.6,2520.5,0.79317]
[1748679309728,1.72600101,2520.6,2520.5,2.10067]
[1748679310141,0.1983,2520.6,2520.5,2.10067]
[1748679312032,1.71663966,2520.6,2520.5,2.10067]
[1748679312945,0.1983,2520.6,2520.5,2.10067]
[1748679314041,1.71668761,2520.6,2520.5,2.10067]
[1748679314436,2.37033388,2521.2,2520.8,0.79308]
[1748679314736,2.37033388,2521.2,2521.1,0.79299]
[1748679315142,2.37033388,2521.2,2521.1,5.79299]
[1748679315646,0.00594401,2521.4,2521.3,0.79292]
[1748679315833,0.00594401,2521.4,2521.3,4.61892]
[1748679316331,0.00594401,2521.4,2521.3,5.24262]
[1748679326043,1.36724401,2521.4,2521.3,5.24262]
[1748679326243,1.36724401,2521.4,2521.3,4.61892]
[1748679327149,1.36724401,2521.4,2521.3,4.61792]
[1748679328555,1.36724401,2521.4,2521.3,0.79292]
[1748679329056,5.36793401,2521.4,2521.3,3.825]
[1748679329460,9.57504401,2521.4,2521.0,4.618]
[1748679329657,0.79299,2521.1,2521.0,4.618]
[1748679329956,0.79295,2521.2,2520.8,3.825]
[1748679330162,0.793,2521.1,2520.8,3.825]
[1748679330363,1.3312,2521.0,2520.9,0.79305]
[1748679331359,4.539,2521.0,2520.9,0.79305]
[1748679331751,4.539,2521.0,2520.5,1.28]
[1748679331959,5.33204,2521.0,2520.9,0.79305]
[1748679332559,4.539,2521.0,2520.9,0.79305]
[1748679333963,5.33202,2521.0,2520.9,0.79305]
[1748679334457,1.3312,2521.0,2520.9,0.79305]
[1748679334662,5.33202,2521.0,2520.9,0.86460339]
[1748679335261,5.33202,2521.0,2520.9,0.07155339]
[1748679336364,0.79313,2520.7,2520.6,0.79313]
[1748679336661,4.00093,2520.7,2520.6,0.86468339]
[1748679337166,9.00093,2520.7,2520.6,0.07155339]
[1748679337865,0.79314,2520.6,2520.4,0.79318]
[1748679338068,3.41034,2520.6,2520.4,0.79318]
[1748679338465,1.2785,2520.5,2520.4,0.79318]
[1748679338664,0.79321,2520.4,2520.3,0.79321]
[1748679338971,3.2078,2520.4,2520.3,0.79321]
[1748679339358,4.4863,2520.4,2520.3,0.79321]
[1748679341876,0.79324,2520.3,2520.2,0.00594401]
[1748679342167,2.03224,2520.3,2520.2,0.00594401]
[1748679342367,3.52234507,2520.3,2520.2,0.00594401]
[1748679343671,2.03224,2520.3,2520.2,0.00594401]
[1748679349874,2.03224,2520.3,2520.2,0.0774974]
[1748679350371,2.03224,2520.3,2520.2,0.8707674]
[1748679350577,2.03224,2520.3,2520.2,0.0774974]
[1748679355982,3.5215437,2520.3,2520.2,0.0774974]
[1748679364289,0.79343,2519.7,2519.6,0.6205]
[1748679364587,0.79346,2519.6,2519.5,1.2999]
[1748679364783,1.46996,2519.6,2519.5,1.2999]
[1748679365376,1.66836,2519.6,2519.5,1.2999]
[1748679365586,0.79352,2519.4,2519.3,0.00594401]
[1748679365789,0.79352,2519.4,2519.3,0.79949401]
[1748679365982,4.00132,2519.4,2519.3,0.00594401]
[1748679368188,5.49255945,2519.4,2519.3,0.00594401]
[1748679371790,0.79365,2519.0,2518.9,0.6228]
[1748679371990,4.00145,2519.0,2518.9,0.6228]
[1748679372391,5.49268945,2519.0,2518.9,0.6228]
[1748679373395,0.79371,2518.8,2518.7,0.00594401]
[1748679373891,2.28494945,2518.8,2518.7,0.00594401]
[1748679374291,4.18504945,2518.8,2518.7,0.00594401]
[1748679374898,2.90134945,2518.8,2518.7,0.00594401]
[1748679376998,4.16354945,2518.8,2518.7,0.00594401]
[1748679377397,2.28494945,2518.8,2518.7,0.00594401]
[1748679377598,2.28494945,2518.8,2518.7,1.88494401]
[1748679378095,1.49123945,2518.8,2518.7,2.67868401]
[1748679379095,3.2078,2519.0,2518.9,0.79368]
[1748679381497,3.2078,2519.0,2518.8,1.2419]
[1748679381702,3.2078,2519.0,2518.9,0.79368]
[1748679381898,0.79368,2518.9,2518.8,2.0356]
[1748679382102,3.2078,2519.0,2518.8,1.2419]
[1748679382402,3.2078,2519.0,2518.9,2.14768]
[1748679382608,4.00145,2519.0,2518.9,2.14768]
[1748679383705,4.00145,2519.0,2518.9,1.354]
[1748679384000,4.00145,2519.0,2518.7,1.5083274]
[1748679384001,3.2078,2519.0,2518.7,1.5083274]
[1748679384203,0.79371,2518.8,2518.7,0.0774974]
[1748679385008,2.28049217,2518.8,2518.7,0.0774974]
[1748679386004,1.48678217,2518.8,2518.7,0.8712374]
[1748679386305,1.48678217,2518.8,2518.7,2.1421374]
[1748679386497,2.28049217,2518.8,2518.7,2.1421374]
[1748679386807,2.28049217,2518.8,2518.7,1.3483974]
[1748679387109,2.28049217,2518.8,2518.7,2.1421374]
[1748679387906,2.28049217,2518.8,2518.7,0.8712374]
[1748679388111,2.28049217,2518.8,2518.7,0.0774974]
[1748679390301,7.28049217,2518.8,2518.7,0.0774974]
[1748679390502,11.10949217,2518.8,2518.7,0.0774974]
[1748679392314,0.79393,2518.1,2518.0,2.75924]
[1748679392619,3.2078,2518.1,2518.0,2.75924]
[1748679393911,4.00173,2518.1,2518.0,2.09244]
[1748679394104,4.00173,2518.1,2518.0,1.2985]
[1748679394404,3.2078,2518.1,2517.8,3.83299358]
[1748679394610,3.2078,2518.1,2518.0,0.86551339]
[1748679394911,4.00173,2518.1,2518.0,0.86551339]
[1748679395206,3.2078,2518.1,2518.0,0.86551339]
[1748679395710,4.00173,2518.1,2518.0,0.86551339]
[1748679396011,4.00173,2518.1,2518.0,0.07155339]
[1748679396401,3.2078,2518.1,2518.0,0.86551339]
[1748679396616,4.00173,2518.1,2518.0,0.07155339]
[1748679396813,0.79399,2517.9,2517.8,0.00399358]
[1748679397614,2.12669,2517.9,2517.8,0.00399358]
[1748679397812,3.61511856,2517.9,2517.8,0.00399358]
[1748679401008,3.81361856,2517.9,2517.8,0.00399358]
[1748679402311,2.32519,2517.9,2517.8,0.00399358]
[1748679404100,3.64899,2517.9,2517.8,0.00399358]
[1748679405214,5.1369642,2517.9,2517.8,0.00399358]
[1748679405914,1.6864742,2517.9,2517.8,0.79802358]
[1748679406112,1.6864742,2517.9,2517.8,5.79802358]
[1748679406309,0.1985,2517.9,2517.8,0.79802358]
[1748679406509,0.1985,2517.9,2517.8,2.75602358]
[1748679406921,0.1985,2517.9,2517.8,7.75602358]
[1748679409714,0.1985,2517.9,2517.8,7.82757697]
[1748679410307,0.00595593,2518.3,2518.2,0.7939]
[1748679410509,0.00595593,2518.3,2518.2,4.6449]
[1748679411632,0.79393,2518.1,2518.0,5.2108]
[1748679411817,0.79399,2517.9,2517.8,0.07554697]
[1748679412115,0.79399,2517.9,2517.8,0.86956697]
[1748679412317,0.79399,2517.9,2517.8,0.07554697]
[1748679415418,0.79399,2517.9,2517.8,0.86957697]
[1748679415721,0.1985,2518.0,2517.9,0.79399]
[1748679416217,0.1985,2518.0,2517.9,2.03199]
[1748679416607,0.1985,2518.0,2517.9,5.88299]
[1748679421618,0.1985,2518.0,2517.9,10.88299]
[1748679423323,0.00595593,2518.3,2518.2,0.7939]
[1748679425815,3.2078,2518.8,2518.7,0.79374]
[1748679426019,3.2078,2518.8,2518.6,3.851]
[1748679426316,0.79374,2518.7,2518.6,4.64474]
[1748679426521,3.2078,2518.8,2518.7,0.79374]
[1748679426723,4.71948754,2518.8,2518.7,0.79374]
[1748679427324,3.2078,2518.8,2518.7,0.79374]
[1748679428120,3.2078,2518.8,2518.7,2.07144]
[1748679430518,3.2078,2518.8,2518.7,0.79374]
[1748679430922,3.2078,2518.8,2518.7,2.15764]
[1748679431132,0.00595593,2519.0,2518.9,0.79368]
[1748679431721,0.00595593,2519.0,2518.9,2.15758]
[1748679432425,0.00595593,2519.0,2518.9,7.15758]
[1748679432622,0.00595593,2519.0,2518.9,10.36538]
[1748679433024,0.6257,2519.7,2519.6,0.79346]
[1748679434032,3.2078,2519.8,2519.7,0.79343]
[1748679434729,3.2078,2519.8,2519.7,1.44653]
[1748679435426,0.00595593,2519.9,2519.8,0.79339]
[1748679435723,0.00595593,2519.9,2519.8,2.71179]
[1748679435932,0.00595593,2519.9,2519.8,7.71179]
[1748679436347,5.93e-06,2519.9,2519.8,7.71179]
[1748679437431,0.79287,2521.5,2520.1,3.9665]
[1748679437728,0.6332,2521.4,2521.1,0.79297]
[1748679438033,0.79298,2521.2,2521.1,3.874]
[1748679438237,0.79294,2521.3,2521.1,3.874]
[1748679438631,0.79295,2521.2,2521.1,3.874]
[1748679440223,0.79294,2521.3,2521.1,3.874]
[1748679440429,0.6332,2521.4,2521.0,3.873]
[1748679440735,0.79297,2521.2,2521.0,4.66601]
[1748679441139,0.79297,2521.2,2521.0,3.873]
[1748679441336,0.79297,2521.2,2521.0,4.666]
[1748679441633,0.79294,2521.3,2521.1,0.79299]
[1748679442038,1.2347,2521.2,2521.1,0.79299]
[1748679442231,1.2347,2521.2,2521.0,4.666]
[1748679442432,2.02765,2521.2,2521.0,4.666]
[1748679443132,2.02765,2521.2,2521.0,0.793]
[1748679443338,0.793,2521.1,2520.9,4.67199593]
[1748679443533,2.02772,2521.0,2520.9,3.87895593]
[1748679443738,5.87252,2521.0,2520.9,0.00595593]
[1748679443939,10.0795,2521.0,2520.4,3.873]
[1748679444238,0.79313,2520.7,2520.5,0.79315]
[1748679444431,1.901,2520.6,2520.5,0.79315]
[1748679444634,2.69414,2520.6,2520.5,0.79315]
[1748679444844,1.901,2520.6,2520.5,0.79315]
[1748679445041,2.69414,2520.6,2520.4,3.873]
[1748679445344,1.41987,2520.5,2520.4,3.873]
[1748679445550,2.66907,2520.5,2520.4,3.873]
[1748679446551,1.8759,2520.5,2520.4,4.66621]
[1748679450153,0.6663,2520.6,2520.4,3.873]
[1748679450357,0.6663,2520.6,2520.5,0.79317]
[1748679451358,1.9941,2520.6,2520.5,0.79317]
[1748679452167,0.6223,2520.7,2520.6,0.79314]
[1748679452454,3.2078,2520.8,2520.7,0.79311]
[1748679454365,0.793,2521.1,2520.7,5.19058]
[1748679454558,1.322,2521.0,2520.9,0.79305]
[1748679454755,2.82446811,2521.0,2520.9,0.79305]
[1748679455762,3.61748811,2521.0,2520.9,0.79305]
[1748679455964,2.82446811,2521.0,2520.9,0.79305]
[1748679456163,3.61748811,2521.0,2520.9,0.79305]
[1748679456364,2.82446811,2521.0,2520.9,0.79305]
[1748679456967,3.61748811,2521.0,2520.9,0.79305]
[1748679457361,0.79305,2520.9,2520.8,3.873]
[1748679457669,2.13365,2520.9,2520.8,4.66608]
[1748679458066,1.3406,2520.9,2520.8,3.873]
[1748679458267,2.84306811,2520.9,2520.8,4.66608]
[1748679460465,1.50246811,2520.9,2520.8,4.66608]
[1748679460861,1.50246811,2520.9,2520.8,5.97368]
[1748679461468,1.50246811,2521.1,2521.0,0.79302]
[1748679462369,1.50246811,2521.1,2521.0,4.00082]
[1748679462572,1.50246811,2521.1,2521.0,5.30842]
[1748679462876,1.50246811,2521.1,2521.0,10.30842]
[1748679462877,0.68717218,2521.1,2521.0,10.30842]
[1748679463070,2.18e-06,2521.1,2521.0,10.30842]
[1748679463858,0.00595593,2521.5,2521.4,0.79289]
[1748679464071,0.00595593,2521.5,2521.4,7.90169]
[1748679464568,0.00595593,2521.5,2521.4,4.00069]
[1748679464764,0.00595593,2521.5,2521.4,12.90069]
[1748679464972,0.00595593,2521.5,2521.4,7.90069]
[1748679465358,0.00595593,2521.5,2521.4,9.78029]
[1748679467470,0.00595593,2521.5,2521.4,7.90069]
[1748679467777,0.79881593,2521.5,2521.4,7.1078]
[1748679467968,0.00595593,2521.5,2521.2,0.79293]
[1748679468168,0.00595593,2521.5,2520.8,4.6032]
[1748679468169,0.6582,2521.4,2520.8,1.9551]
[1748679468364,0.79297,2521.2,2521.1,0.79298]
[1748679468572,0.79297,2521.2,2521.0,0.793]
[1748679468774,2.0482,2521.1,2521.0,0.793]
[1748679468973,2.0482,2521.1,2521.0,4.693]
[1748679470171,2.84119,2521.1,2521.0,4.693]
[1748679470367,2.0482,2521.1,2521.0,4.693]
[1748679471073,2.0482,2521.1,2521.0,0.793]
[1748679471274,2.0482,2521.1,2521.0,4.693]
[1748679472571,2.84119,2521.1,2521.0,4.693]
[1748679472780,2.84119,2521.1,2521.0,0.793]
[1748679472973,2.84119,2521.1,2521.0,4.693]
[1748679473477,2.84119,2521.1,2521.0,3.9]
[1748679473776,2.84119,2521.1,2521.0,4.69302]
[1748679474466,2.84119,2521.1,2521.0,3.9]
[1748679474668,6.04899,2521.1,2521.0,3.9]
[1748679475277,0.79308,2520.8,2520.7,4.69308]
[1748679475478,0.79308,2520.8,2520.7,3.9]
[1748679475772,2.29169275,2520.8,2520.7,3.9]
[1748679476282,0.79321,2520.4,2520.3,0.79916593]
[1748679476485,3.2078,2520.5,2520.3,0.00595593]
[1748679476776,1.9343,2520.4,2520.3,0.79919593]
[1748679476973,3.43291275,2520.4,2520.3,0.79919593]
[1748679477972,1.9343,2520.4,2520.3,0.79919593]
[1748679478279,3.43224858,2520.4,2520.3,0.79919593]
[1748679479879,1.49794858,2520.4,2520.3,0.79919593]
[1748679481079,1.49794858,2520.4,2520.3,2.70769593]
[1748679481580,3.2078,2520.5,2520.4,0.79321]
[1748679481979,3.2078,2520.5,2520.4,2.08801]
[1748679483076,5.1261,2520.7,2520.3,0.64825593]
[1748679483284,5.91922,2520.7,2520.6,0.79314]
[1748679483481,5.1261,2520.7,2520.6,0.79314]
[1748679483677,5.1261,2520.7,2520.5,3.901]
[1748679483887,0.79314,2520.6,2520.4,4.69418]
[1748679484087,2.02687,2520.5,2520.4,4.69418]
[1748679484288,2.02687,2520.5,2520.4,3.901]
[1748679484881,2.02687,2520.5,2520.4,3.97255339]
[1748679485282,1.2337,2520.5,2520.4,4.76576339]
[1748679487789,2.02687,2520.5,2520.4,4.76576339]
[1748679489088,2.02687,2520.5,2520.4,0.07155339]
[1748679489292,7.02687,2520.5,2520.4,0.07155339]
[1748679490492,8.52305106,2520.5,2520.4,0.07155339]
[1748679492389,3.52305106,2520.5,2520.4,0.07155339]
[1748679493285,0.79321,2520.4,2520.3,0.00595593]
[1748679493489,0.79327,2520.2,2520.1,3.901]
[1748679493992,0.6542,2520.3,2519.5,4.4847]
[1748679494184,0.79336,2519.9,2519.8,4.70039]
[1748679494682,0.79336,2519.9,2519.8,3.907]
[1748679495791,0.79336,2519.9,2519.8,4.7004]
[1748679497590,0.79336,2519.9,2519.8,3.907]
[1748679497791,5.21845593,2520.1,2519.6,0.00595593]
[1748679497984,0.79343,2519.7,2519.6,0.00595593]
[1748679498180,2.78331,2519.8,2519.6,0.00595593]
[1748679498392,2.78331,2519.8,2519.7,0.79343]
[1748679498690,0.79343,2519.7,2519.6,0.79940593]
[1748679498898,2.10823,2519.7,2519.6,0.00595593]
[1748679500090,3.60499166,2519.7,2519.6,0.00595593]
[1748679500291,0.79358,2519.2,2519.1,0.7936]
[1748679500502,0.79357,2519.3,2519.1,0.7936]
[1748679500790,0.6514,2519.2,2519.1,0.7936]
[1748679500991,2.79478,2519.2,2519.1,0.7936]
[1748679501192,2.0012,2519.2,2519.1,0.7936]
[1748679501895,0.79362,2519.1,2519.0,0.79363]
[1748679502093,2.14342,2519.1,2519.0,0.79363]
[1748679502297,1.3498,2519.1,2518.9,7.91245358]
[1748679502493,1.3498,2519.1,2518.9,7.11879358]
[1748679502690,1.3498,2519.1,2519.0,0.79365]
[1748679503197,2.14342,2519.1,2518.9,7.11879358]
[1748679503496,2.14342,2519.1,2519.0,0.79365]
[1748679504392,1.3498,2519.1,2519.0,0.79365]
[1748679505496,0.6514,2519.2,2519.1,0.79362]
[1748679506095,1.44498,2519.2,2519.1,0.79362]
[1748679506696,0.79362,2519.1,2519.0,0.79363]
[1748679507294,0.6514,2519.2,2518.9,8.46379358]
[1748679507494,0.79364,2519.1,2519.0,0.79364]
[1748679508091,0.79364,2519.1,2518.9,3.908]
[1748679508295,1.2384,2519.0,2518.9,4.70168]
[1748679510699,2.03205,2519.0,2518.9,3.908]
[1748679510891,0.79369,2518.9,2518.5,3.2078]
[1748679511099,1.47347,2519.0,2518.9,0.79368]
[1748679512095,0.6798,2519.0,2518.9,0.79368]
[1748679513704,1.47345,2519.0,2518.9,0.79368]
[1748679513904,0.6798,2519.0,2518.9,0.79368]
[1748679514204,1.47345,2519.0,2518.9,0.79368]
[1748679515305,1.47345,2519.0,2518.9,0.86523339]
[1748679515605,0.6798,2519.0,2518.9,0.86523339]
[1748679515806,1.47345,2519.0,2518.9,0.86523339]
[1748679516004,0.6798,2519.0,2518.9,0.86523339]
[1748679516205,1.47345,2519.0,2518.9,0.86523339]
[1748679516411,4.68125,2519.0,2518.9,0.07155339]
[1748679516904,6.17633999,2519.0,2518.9,0.07155339]
[1748679517901,11.17633999,2519.0,2518.9,0.07155339]
[1748679518104,1.98455,2518.5,2517.8,7.1168]
[1748679518296,3.2078,2518.2,2518.0,0.79395]
[1748679518503,3.2078,2518.2,2517.8,5.33621]
[1748679518695,4.00179,2517.9,2517.8,3.909]
[1748679518905,3.2078,2517.9,2517.6,0.79409]
[1748679519104,1.3096,2517.8,2517.3,3.909]
[1748679519407,1.3096,2517.8,2517.3,5.1748]
[1748679519598,2.10364,2517.8,2517.6,0.79408]
[1748679519907,1.3096,2517.8,2517.7,0.79406]
[1748679520708,2.10363,2517.8,2517.6,0.79407]
[1748679520908,1.3096,2517.8,2517.7,0.79406]
[1748679521406,2.80207912,2517.8,2517.7,0.79406]
[1748679521906,3.59610912,2517.8,2517.3,5.1748]
[1748679522101,3.2078,2517.7,2517.5,0.79411]
[1748679522405,2.09639,2517.6,2517.3,5.1748]
[1748679522596,1.3023,2517.6,2517.5,0.79412]
[1748679525509,3.2078,2517.7,2517.6,0.79409]
[1748679527010,3.2078,2517.7,2517.6,5.79409]
[1748679527515,3.2078,2518.1,2518.0,0.79396]
[1748679527715,3.2078,2518.1,2518.0,4.69696]
[1748679528106,3.2078,2518.1,2518.0,5.93686]
[1748679532908,3.21375593,2518.4,2518.3,0.79387]
[1748679536713,3.21375593,2518.4,2518.3,2.08777]
[1748679541410,0.79387,2518.3,2518.2,3.903]
[1748679541616,2.80427,2518.3,2518.2,3.903]
[1748679541814,0.7939,2518.2,2518.1,0.00617481]
[1748679542115,1.4369,2518.2,2518.1,0.00617481]
[1748679542314,2.6795,2518.2,2518.1,0.00617481]
[1748679542510,4.17400773,2518.2,2518.1,0.00617481]
[1748679543418,4.17400773,2518.2,2518.1,0.80010481]
[1748679543625,3.38010773,2518.2,2518.1,0.80010481]
[1748679543917,2.73710773,2518.2,2518.1,0.80010481]
[1748679544111,1.2426,2518.2,2518.1,0.80010481]
[1748679545321,2.0365,2518.2,2518.1,0.00617481]
[1748679545714,2.0365,2518.2,2518.1,0.0777282]
[1748679546520,3.53230447,2518.2,2518.1,0.0777282]
[1748679548623,3.53230447,2518.2,2518.1,0.8716582]
[1748679549019,3.53230447,2518.2,2518.1,0.0777282]
[1748679549522,3.53230447,2518.2,2518.1,0.8716582]
[1748679550114,2.73840447,2518.2,2518.1,0.8716582]
[1748679550615,1.49580447,2518.2,2518.1,0.8716582]
[1748679551012,1.49580447,2518.2,2518.1,4.7746582]
[1748679551220,0.6619,2518.3,2518.2,0.7939]
[1748679552330,1.923,2518.3,2518.2,0.7939]
[1748679552921,3.21375593,2518.4,2518.3,0.79387]
[1748679554926,0.00595593,2518.4,2518.3,0.79387]
[1748679555223,0.00595593,2518.4,2518.3,2.09907]
[1748679555525,0.00595593,2518.4,2518.3,7.09907]
[1748679556430,0.00595593,2518.4,2518.3,7.71937]
[1748679557425,5.93e-06,2518.4,2518.3,7.71937]
[1748679560333,3.2078,2519.4,2519.3,0.79355]
[1748679560529,4.4521,2519.4,2519.3,0.79355]
[1748679560726,5.24562,2519.4,2519.3,0.79355]
[1748679560928,4.4521,2519.4,2519.3,0.79355]
[1748679561531,5.24562,2519.4,2519.3,0.79355]
[1748679561828,4.4521,2519.4,2519.3,0.79355]
[1748679562931,1.2443,2519.4,2519.3,0.79355]
[1748679564330,1.2443,2519.4,2519.3,4.71155]
[1748679565629,1.26825593,2519.6,2519.5,0.79349]
[1748679565845,0.00595593,2519.6,2519.5,0.79349]